[Event "*** Titled Tuesday 3|2 Blitz"]
[Site "Chess.com"]
[Date "2016.05.03"]
[Round "3"]
[White "Zurability"]
[Black "EltajSafarli"]
[Result "0-1"]
[WhiteElo "2426"]
[BlackElo "2675"]
[TimeControl "180+2"]
[EndTime "17:32:13 PDT"]
[Termination "EltajSafarli won by resignation"]

1. e4 {[%clk 0:03:01.9]} 1... c5 {[%clk 0:02:59.9]} 2. Nc3 {[%clk 0:03:01.3]}
2... e6 {[%clk 0:03:00.7]} 3. Nge2 {[%clk 0:03:02.3]} 3... Nc6 {[%clk
0:02:59.3]} 4. d4 {[%clk 0:03:03.3]} 4... cxd4 {[%clk 0:03:00]} 5. Nxd4 {[%clk
0:03:05.2]} 5... Nf6 {[%clk 0:03:01.5]} 6. Ndb5 {[%clk 0:03:04.5]} 6... Bc5
{[%clk 0:03:01.5]} 7. Bf4 {[%clk 0:03:04.1]} 7... O-O {[%clk 0:03:01.7]} 8. Bc7
{[%clk 0:03:05.1]} 8... Qe7 {[%clk 0:03:02.6]} 9. Bd6 {[%clk 0:03:06.3]} 9...
Bxd6 {[%clk 0:03:04.1]} 10. Qxd6 {[%clk 0:03:08.2]} 10... Qd8 {[%clk 0:03:05.1]}
11. Qc7 {[%clk 0:03:08.8]} 11... Qe7 {[%clk 0:03:04.5]} 12. Qd6 {[%clk 0:03:10]}
12... Qd8 {[%clk 0:02:59.2]} 13. Qc7 {[%clk 0:02:44.1]} 13... d5 {[%clk
0:02:58.2]} 14. Qxd8 {[%clk 0:02:27.6]} 14... Rxd8 {[%clk 0:03:00.1]} 15. exd5
{[%clk 0:02:20]} 15... exd5 {[%clk 0:03:02]} 16. O-O-O {[%clk 0:02:16.6]} 16...
d4 {[%clk 0:03:03.3]} 17. Ne2 {[%clk 0:02:17.4]} 17... Ne4 {[%clk 0:03:03.4]}
18. Nexd4 {[%clk 0:02:01.6]} 18... Nxf2 {[%clk 0:03:01.2]} 19. Be2 {[%clk
0:02:03]} 19... Nxd4 {[%clk 0:02:56]} 0-1

[Event "*** Titled Tuesday 3|2 Blitz"]
[Site "Chess.com"]
[Date "2016.05.03"]
[Round "3"]
[White "howitzer14"]
[Black "jeaston1"]
[Result "1-0"]
[WhiteElo "2226"]
[BlackElo "1997"]
[TimeControl "180+2"]
[EndTime "17:33:00 PDT"]
[Termination "howitzer14 won by resignation"]

1. c4 {[%clk 0:03:01.9]} 1... e5 {[%clk 0:03:00.2]} 2. g3 {[%clk 0:03:03]} 2...
Nf6 {[%clk 0:03:00.8]} 3. Bg2 {[%clk 0:03:03.1]} 3... Bc5 {[%clk 0:03:01.9]} 4.
Nc3 {[%clk 0:03:04.2]} 4... Nc6 {[%clk 0:03:02.9]} 5. e3 {[%clk 0:03:05.7]} 5...
d6 {[%clk 0:03:03.7]} 6. Nf3 {[%clk 0:03:07.2]} 6... O-O {[%clk 0:03:04.2]} 7.
O-O {[%clk 0:03:07.9]} 7... Bg4 {[%clk 0:03:01.4]} 8. h3 {[%clk 0:03:09.2]} 8...
Bh5 {[%clk 0:03:02.4]} 9. g4 {[%clk 0:03:03]} 9... Bg6 {[%clk 0:03:03.2]} 10. d4
{[%clk 0:03:04.1]} 10... exd4 {[%clk 0:03:03.4]} 11. exd4 {[%clk 0:03:05.1]}
11... Bb6 {[%clk 0:03:05]} 12. Bg5 {[%clk 0:03:04.1]} 12... h6 {[%clk
0:03:05.4]} 13. Bh4 {[%clk 0:03:05.1]} 13... Bh7 {[%clk 0:02:58.5]} 14. Re1
{[%clk 0:02:39.5]} 14... Qd7 {[%clk 0:02:48.1]} 15. Bxf6 {[%clk 0:02:39.4]}
15... gxf6 {[%clk 0:02:49.1]} 16. Nd5 {[%clk 0:02:41.1]} 16... Kg7 {[%clk
0:02:48.1]} 17. Qd2 {[%clk 0:02:37.8]} 17... f5 {[%clk 0:02:37.6]} 18. Nf6
{[%clk 0:02:31.8]} 18... Qd8 {[%clk 0:02:12.9]} 19. Nh5+ {[%clk 0:02:29]} 19...
Kh8 {[%clk 0:02:12.4]} 20. Qxh6 {[%clk 0:02:24.8]} 20... Rg8 {[%clk 0:02:00.3]}
21. Re8 {[%clk 0:02:26.1]} 21... Qxe8 {[%clk 0:01:43]} 1-0

[Event "*** Titled Tuesday 3|2 Blitz"]
[Site "Chess.com"]
[Date "2016.05.03"]
[Round "3"]
[White "Tonychess32"]
[Black "Viaje"]
[Result "1-0"]
[WhiteElo "2405"]
[BlackElo "2159"]
[TimeControl "180+2"]
[EndTime "17:34:26 PDT"]
[Termination "Tonychess32 won by resignation"]

1. e4 {[%clk 0:03:01.9]} 1... c5 {[%clk 0:03:01]} 2. Nf3 {[%clk 0:03:03]} 2...
d6 {[%clk 0:03:02.4]} 3. c3 {[%clk 0:03:04.5]} 3... Nf6 {[%clk 0:03:03]} 4. Be2
{[%clk 0:03:05.8]} 4... Bd7 {[%clk 0:03:03.9]} 5. Qc2 {[%clk 0:03:04.9]} 5...
Qc7 {[%clk 0:03:02.8]} 6. d3 {[%clk 0:03:05.9]} 6... g6 {[%clk 0:03:04]} 7. O-O
{[%clk 0:03:06.1]} 7... Bg7 {[%clk 0:03:05.5]} 8. a4 {[%clk 0:03:04.4]} 8... O-O
{[%clk 0:03:05.2]} 9. h3 {[%clk 0:03:04.9]} 9... e5 {[%clk 0:02:58.6]} 10. Na3
{[%clk 0:03:05.8]} 10... a6 {[%clk 0:02:56.2]} 11. Nc4 {[%clk 0:03:02.9]} 11...
h6 {[%clk 0:02:52.7]} 12. Re1 {[%clk 0:03:03]} 12... Nc6 {[%clk 0:02:51.5]} 13.
a5 {[%clk 0:03:04.3]} 13... Be6 {[%clk 0:02:51.9]} 14. Nb6 {[%clk 0:03:01.4]}
14... Rad8 {[%clk 0:02:51.8]} 15. c4 {[%clk 0:02:59.1]} 15... Nxa5 {[%clk
0:02:30]} 16. Nd5 {[%clk 0:02:56]} 16... Bxd5 {[%clk 0:02:30.8]} 17. cxd5 {[%clk
0:02:56.4]} 17... b5 {[%clk 0:02:30.5]} 18. b4 {[%clk 0:02:49.9]} 18... Nb7
{[%clk 0:02:28.5]} 19. Rxa6 {[%clk 0:02:50.9]} 19... Ra8 {[%clk 0:02:26.2]} 20.
Rc6 {[%clk 0:02:48.8]} 20... Qd7 {[%clk 0:02:26]} 21. bxc5 {[%clk 0:02:44.9]}
21... Nxc5 {[%clk 0:02:23.8]} 22. Nxe5 {[%clk 0:02:46.2]} 22... dxe5 {[%clk
0:02:23.6]} 23. Rxc5 {[%clk 0:02:46.4]} 23... Ne8 {[%clk 0:02:15.4]} 24. Rc6
{[%clk 0:02:43.8]} 24... Nd6 {[%clk 0:02:11.5]} 25. Be3 {[%clk 0:02:44.3]} 25...
Rfc8 {[%clk 0:02:05.7]} 26. Rc1 {[%clk 0:02:44.6]} 26... Bf8 {[%clk 0:02:06]}
27. Qb2 {[%clk 0:02:39.3]} 27... h5 {[%clk 0:01:51.1]} 28. Qxe5 {[%clk
0:02:30.5]} 28... Rxc6 {[%clk 0:01:47.5]} 29. dxc6 {[%clk 0:02:30.3]} 29... Qc7
{[%clk 0:01:49]} 30. Bf4 {[%clk 0:02:20.2]} 30... Ra2 {[%clk 0:01:48.2]} 31. Bf3
{[%clk 0:02:15.4]} 31... Qa7 {[%clk 0:01:46.6]} 32. Be3 {[%clk 0:02:11.3]} 32...
Qc7 {[%clk 0:01:39.7]} 33. Qd5 {[%clk 0:02:12.3]} 33... Ra3 {[%clk 0:01:35.6]}
34. Bc5 {[%clk 0:02:10]} 34... Ra2 {[%clk 0:01:34]} 35. Qxa2 {[%clk 0:02:08.6]}
1-0

[Event "*** Titled Tuesday 3|2 Blitz"]
[Site "Chess.com"]
[Date "2016.05.03"]
[Round "3"]
[White "FLchessplayer"]
[Black "zane33"]
[Result "0-1"]
[WhiteElo "2055"]
[BlackElo "1986"]
[TimeControl "180+2"]
[EndTime "17:34:29 PDT"]
[Termination "zane33 won by resignation"]

1. e4 {[%clk 0:02:59.8]} 1... e5 {[%clk 0:03:00.7]} 2. Nf3 {[%clk 0:02:59.3]}
2... Nc6 {[%clk 0:03:02.1]} 3. Bb5 {[%clk 0:02:59.1]} 3... Bc5 {[%clk
0:03:03.5]} 4. c3 {[%clk 0:02:59]} 4... Nf6 {[%clk 0:03:04.5]} 5. d3 {[%clk
0:03:00.1]} 5... O-O {[%clk 0:03:04.1]} 6. O-O {[%clk 0:03:00.5]} 6... d5 {[%clk
0:03:02.3]} 7. Bxc6 {[%clk 0:02:57.5]} 7... bxc6 {[%clk 0:03:01.5]} 8. Nxe5
{[%clk 0:02:58.7]} 8... dxe4 {[%clk 0:02:58.8]} 9. d4 {[%clk 0:02:53.3]} 9...
Qe8 {[%clk 0:02:42.1]} 10. Nxf7 {[%clk 0:02:47]} 10... Qxf7 {[%clk 0:02:35.7]}
11. dxc5 {[%clk 0:02:47.1]} 11... Bg4 {[%clk 0:02:31.7]} 12. Qd2 {[%clk
0:02:40.5]} 12... Rad8 {[%clk 0:02:30.5]} 13. Qg5 {[%clk 0:02:41.4]} 13... Be2
{[%clk 0:02:27.6]} 14. Re1 {[%clk 0:02:39.4]} 14... Ng4 {[%clk 0:02:25.4]} 15.
Qh4 {[%clk 0:02:35.2]} 15... Nxf2 {[%clk 0:02:22.2]} 16. Be3 {[%clk 0:02:19.5]}
16... Ng4 {[%clk 0:02:11.4]} 17. Na3 {[%clk 0:02:00.7]} 17... Bd1 {[%clk
0:01:26.3]} 18. Raxd1 {[%clk 0:01:44.4]} 18... Rxd1 {[%clk 0:01:25.1]} 19. Rxd1
{[%clk 0:01:40]} 19... Nxe3 {[%clk 0:01:24.9]} 0-1

[Event "*** Titled Tuesday 3|2 Blitz"]
[Site "Chess.com"]
[Date "2016.05.03"]
[Round "3"]
[White "SidArun"]
[Black "jposthuma"]
[Result "0-1"]
[WhiteElo "1973"]
[BlackElo "2146"]
[TimeControl "180+2"]
[EndTime "17:34:57 PDT"]
[Termination "jposthuma won by resignation"]

1. d4 {[%clk 0:03:01.9]} 1... Nf6 {[%clk 0:03:01.1]} 2. Nf3 {[%clk 0:03:02.6]}
2... c5 {[%clk 0:03:02]} 3. c3 {[%clk 0:03:03.4]} 3... g6 {[%clk 0:03:03.4]} 4.
e3 {[%clk 0:03:01.6]} 4... Bg7 {[%clk 0:03:04.6]} 5. Bd3 {[%clk 0:03:02.3]} 5...
O-O {[%clk 0:03:04.7]} 6. Nbd2 {[%clk 0:03:03.2]} 6... d6 {[%clk 0:03:05.7]} 7.
O-O {[%clk 0:03:04]} 7... Nc6 {[%clk 0:03:04.9]} 8. e4 {[%clk 0:03:04.7]} 8...
e5 {[%clk 0:03:04]} 9. d5 {[%clk 0:03:05.6]} 9... Ne7 {[%clk 0:03:03.9]} 10. Ne1
{[%clk 0:03:05.8]} 10... Nh5 {[%clk 0:03:01.4]} 11. Nc4 {[%clk 0:03:02.7]} 11...
b5 {[%clk 0:02:50.7]} 12. Ne3 {[%clk 0:03:03.2]} 12... a6 {[%clk 0:02:44.2]} 13.
c4 {[%clk 0:03:03.4]} 13... b4 {[%clk 0:02:41.2]} 14. Nf5 {[%clk 0:02:38.5]}
14... Nxf5 {[%clk 0:02:11.1]} 15. exf5 {[%clk 0:02:39.3]} 15... Nf4 {[%clk
0:02:12.6]} 16. Bxf4 {[%clk 0:02:39.6]} 16... exf4 {[%clk 0:02:14]} 17. Qc2
{[%clk 0:02:19.4]} 17... Qg5 {[%clk 0:01:56.4]} 18. Nf3 {[%clk 0:02:19]} 18...
Qh5 {[%clk 0:01:56.1]} 19. fxg6 {[%clk 0:01:59]} 19... fxg6 {[%clk 0:01:53.3]}
20. Rae1 {[%clk 0:02:00.1]} 20... Bf6 {[%clk 0:01:46.6]} 21. Nd2 {[%clk
0:01:44.4]} 21... Bd7 {[%clk 0:01:24]} 22. f3 {[%clk 0:01:24.5]} 22... Bd4+
{[%clk 0:01:21.8]} 23. Kh1 {[%clk 0:01:25.5]} 23... Rae8 {[%clk 0:01:16]} 24.
Ne4 {[%clk 0:01:25.3]} 24... Re5 {[%clk 0:01:15.4]} 25. b3 {[%clk 0:01:18.3]}
25... Qxh2+ {[%clk 0:01:14.5]} 0-1

[Event "*** Titled Tuesday 3|2 Blitz"]
[Site "Chess.com"]
[Date "2016.05.03"]
[Round "3"]
[White "flavettes"]
[Black "Assasin14"]
[Result "0-1"]
[WhiteElo "2346"]
[BlackElo "2049"]
[TimeControl "180+2"]
[EndTime "17:35:32 PDT"]
[Termination "Assasin14 won by resignation"]

1. d4 {[%clk 0:03:01.9]} 1... d5 {[%clk 0:03:00.3]} 2. c4 {[%clk 0:03:03.4]}
2... c6 {[%clk 0:03:01.4]} 3. Nc3 {[%clk 0:03:04.8]} 3... Nf6 {[%clk 0:03:01.5]}
4. Nf3 {[%clk 0:03:05.6]} 4... e6 {[%clk 0:03:02.7]} 5. Bg5 {[%clk 0:03:05.9]}
5... Nbd7 {[%clk 0:03:03.8]} 6. cxd5 {[%clk 0:03:06.1]} 6... exd5 {[%clk
0:03:03.3]} 7. e3 {[%clk 0:03:07.5]} 7... Be7 {[%clk 0:03:02.2]} 8. Bd3 {[%clk
0:03:08.4]} 8... O-O {[%clk 0:03:03.6]} 9. O-O {[%clk 0:03:09.7]} 9... Re8
{[%clk 0:03:05.1]} 10. Qc2 {[%clk 0:03:10.9]} 10... Nf8 {[%clk 0:03:06]} 11.
Bxf6 {[%clk 0:03:11.8]} 11... Bxf6 {[%clk 0:03:07]} 12. b4 {[%clk 0:03:13.3]}
12... Bg4 {[%clk 0:03:07.1]} 13. Nd2 {[%clk 0:03:12.3]} 13... b5 {[%clk
0:03:05.4]} 14. a4 {[%clk 0:03:10.7]} 14... a6 {[%clk 0:03:04.1]} 15. Nb3 {[%clk
0:03:11.4]} 15... Nd7 {[%clk 0:03:03.9]} 16. Nc5 {[%clk 0:03:11.9]} 16... Nb6
{[%clk 0:03:02.8]} 17. a5 {[%clk 0:02:54.6]} 17... Nc4 {[%clk 0:03:02.5]} 18.
Rae1 {[%clk 0:02:54.2]} 18... h6 {[%clk 0:02:55.1]} 19. h3 {[%clk 0:02:53.2]}
19... Bc8 {[%clk 0:02:55.2]} 20. Kh1 {[%clk 0:02:36.5]} 20... Be7 {[%clk
0:02:52.3]} 21. Ne2 {[%clk 0:02:20.9]} 21... Ra7 {[%clk 0:02:49.3]} 22. Nf4
{[%clk 0:02:15.8]} 22... Bd6 {[%clk 0:02:48.4]} 23. Ne2 {[%clk 0:02:05.3]} 23...
Qh4 {[%clk 0:02:42.4]} 24. Ng1 {[%clk 0:02:04.9]} 24... Rae7 {[%clk 0:02:37.4]}
25. Re2 {[%clk 0:02:03.4]} 25... Bg4 {[%clk 0:02:27.3]} 26. Ree1 {[%clk
0:02:00.5]} 26... Bc8 {[%clk 0:02:26.6]} 27. e4 {[%clk 0:01:55.4]} 27... dxe4
{[%clk 0:01:59.5]} 28. Bxc4 {[%clk 0:01:55.2]} 28... bxc4 {[%clk 0:01:58.9]} 29.
Qxc4 {[%clk 0:01:55]} 29... e3 {[%clk 0:01:57.7]} 30. Nf3 {[%clk 0:01:54.9]}
30... Qh5 {[%clk 0:01:43.1]} 31. fxe3 {[%clk 0:01:49.6]} 31... Bxh3 {[%clk
0:01:42.7]} 32. e4 {[%clk 0:00:57.5]} 32... Be6+ {[%clk 0:01:40.2]} 0-1

[Event "*** Titled Tuesday 3|2 Blitz"]
[Site "Chess.com"]
[Date "2016.05.03"]
[Round "3"]
[White "jk13"]
[Black "Noukii"]
[Result "1-0"]
[WhiteElo "2428"]
[BlackElo "2698"]
[TimeControl "180+2"]
[EndTime "17:35:47 PDT"]
[Termination "jk13 won by resignation"]

1. e4 {[%clk 0:03:01.9]} 1... e5 {[%clk 0:02:56.6]} 2. Nf3 {[%clk 0:03:02.3]}
2... Nc6 {[%clk 0:02:58.2]} 3. Bc4 {[%clk 0:03:03.9]} 3... Nf6 {[%clk 0:02:56]}
4. d3 {[%clk 0:03:05.4]} 4... Bc5 {[%clk 0:02:56.9]} 5. c3 {[%clk 0:03:06.6]}
5... O-O {[%clk 0:02:58.4]} 6. O-O {[%clk 0:03:05.7]} 6... d5 {[%clk 0:03:00]}
7. exd5 {[%clk 0:03:07.1]} 7... Nxd5 {[%clk 0:03:01.9]} 8. Re1 {[%clk
0:03:08.1]} 8... Bg4 {[%clk 0:03:01.6]} 9. h3 {[%clk 0:03:07.7]} 9... Bh5 {[%clk
0:03:02.6]} 10. Nbd2 {[%clk 0:03:08.6]} 10... Nb6 {[%clk 0:03:02.4]} 11. Bb5
{[%clk 0:03:09.4]} 11... Bd6 {[%clk 0:03:02.6]} 12. Ne4 {[%clk 0:03:09.8]} 12...
f5 {[%clk 0:03:03.9]} 13. Ng3 {[%clk 0:03:10.3]} 13... Bxf3 {[%clk 0:03:01.4]}
14. Qxf3 {[%clk 0:03:12.2]} 14... Qd7 {[%clk 0:03:02.4]} 15. Bd2 {[%clk
0:03:02.9]} 15... Rae8 {[%clk 0:03:02.4]} 16. Rad1 {[%clk 0:03:02.1]} 16... a6
{[%clk 0:03:03.7]} 17. Bxc6 {[%clk 0:03:02.2]} 17... bxc6 {[%clk 0:03:05.6]} 18.
Bc1 {[%clk 0:03:02.7]} 18... c5 {[%clk 0:03:04.3]} 19. b3 {[%clk 0:02:59.4]}
19... c6 {[%clk 0:02:56.9]} 20. c4 {[%clk 0:02:53]} 20... Na8 {[%clk 0:02:25.4]}
21. Bb2 {[%clk 0:02:50.8]} 21... Nc7 {[%clk 0:02:26.3]} 22. Kh1 {[%clk
0:02:37.3]} 22... e4 {[%clk 0:01:40.1]} 23. dxe4 {[%clk 0:02:30.6]} 23... fxe4
{[%clk 0:01:41.6]} 24. Qc3 {[%clk 0:02:20.1]} 24... Ne6 {[%clk 0:01:27.2]} 25.
Nxe4 {[%clk 0:02:15.3]} 25... Nd4 {[%clk 0:01:28.1]} 26. b4 {[%clk 0:01:38.9]}
26... Rf3 {[%clk 0:01:18.8]} 27. Nxd6 {[%clk 0:01:16.3]} 27... Rxe1+ {[%clk
0:01:14.9]} 28. Qxe1 {[%clk 0:01:11.2]} 28... Qxd6 {[%clk 0:00:54.7]} 29. gxf3
{[%clk 0:01:09.7]} 29... Qd7 {[%clk 0:00:54.9]} 30. Bxd4 {[%clk 0:01:05.3]} 1-0

[Event "*** Titled Tuesday 3|2 Blitz"]
[Site "Chess.com"]
[Date "2016.05.03"]
[Round "3"]
[White "renanreis"]
[Black "chesstatour"]
[Result "1-0"]
[WhiteElo "2010"]
[BlackElo "2006"]
[TimeControl "180+2"]
[EndTime "17:36:07 PDT"]
[Termination "renanreis won by resignation"]

1. e4 {[%clk 0:03:01.9]} 1... c6 {[%clk 0:03:00.7]} 2. Nf3 {[%clk 0:03:00.3]}
2... d5 {[%clk 0:03:02.2]} 3. Nc3 {[%clk 0:03:00.3]} 3... dxe4 {[%clk
0:03:02.7]} 4. Nxe4 {[%clk 0:02:59.1]} 4... Nf6 {[%clk 0:03:04.1]} 5. Nxf6+
{[%clk 0:02:58.8]} 5... gxf6 {[%clk 0:03:06]} 6. d4 {[%clk 0:02:58.4]} 6... Bg4
{[%clk 0:03:06.1]} 7. Be2 {[%clk 0:02:57.5]} 7... e6 {[%clk 0:03:06.7]} 8. O-O
{[%clk 0:02:53.7]} 8... Bd6 {[%clk 0:03:07.6]} 9. c4 {[%clk 0:02:52.8]} 9... Rg8
{[%clk 0:02:32.7]} 10. Re1 {[%clk 0:02:48.7]} 10... Nd7 {[%clk 0:02:18.3]} 11.
Qc2 {[%clk 0:02:31.6]} 11... Nf8 {[%clk 0:01:53.2]} 12. d5 {[%clk 0:02:11.8]}
12... Rc8 {[%clk 0:01:48.5]} 13. c5 {[%clk 0:02:07.1]} 13... Be5 {[%clk
0:01:11.3]} 14. Nxe5 {[%clk 0:02:02.8]} 14... fxe5 {[%clk 0:01:13.2]} 15. Bxg4
{[%clk 0:01:57]} 15... Rxg4 {[%clk 0:01:10.5]} 16. dxe6 {[%clk 0:01:11.1]} 16...
Nxe6 {[%clk 0:00:48.7]} 17. Rxe5 {[%clk 0:01:10.8]} 17... Qd4 {[%clk 0:00:42.1]}
18. Qe2 {[%clk 0:01:04.8]} 18... Rd8 {[%clk 0:00:22.7]} 19. Bh6 {[%clk
0:00:48.8]} 19... Qd3 {[%clk 0:00:09.8]} 20. Rxe6+ {[%clk 0:00:47.7]} 1-0

[Event "*** Titled Tuesday 3|2 Blitz"]
[Site "Chess.com"]
[Date "2016.05.03"]
[Round "3"]
[White "Silent_Terror"]
[Black "PedroLeRobot"]
[Result "0-1"]
[WhiteElo "2575"]
[BlackElo "2447"]
[TimeControl "180+2"]
[EndTime "17:36:13 PDT"]
[Termination "PedroLeRobot won by checkmate"]

1. e4 {[%clk 0:03:01.9]} 1... g6 {[%clk 0:03:01.2]} 2. d4 {[%clk 0:03:01.8]}
2... Bg7 {[%clk 0:03:02.6]} 3. Be3 {[%clk 0:03:03.4]} 3... d6 {[%clk 0:03:03.6]}
4. Nc3 {[%clk 0:03:04.7]} 4... a6 {[%clk 0:03:02.6]} 5. f3 {[%clk 0:03:05.3]}
5... b5 {[%clk 0:03:03.9]} 6. a3 {[%clk 0:03:06.4]} 6... Bb7 {[%clk 0:03:05.3]}
7. Qd2 {[%clk 0:03:07.2]} 7... Nd7 {[%clk 0:03:06.7]} 8. h4 {[%clk 0:03:07.6]}
8... h5 {[%clk 0:03:06.7]} 9. Nh3 {[%clk 0:03:08.3]} 9... Qc8 {[%clk 0:03:03.8]}
10. Be2 {[%clk 0:03:06.5]} 10... c5 {[%clk 0:03:02.6]} 11. Ng5 {[%clk
0:03:04.9]} 11... Ngf6 {[%clk 0:02:57]} 12. O-O-O {[%clk 0:02:56.4]} 12... b4
{[%clk 0:02:53.1]} 13. Nb1 {[%clk 0:02:48.4]} 13... a5 {[%clk 0:02:48.2]} 14.
Bc4 {[%clk 0:02:41]} 14... O-O {[%clk 0:02:41.4]} 15. Ba2 {[%clk 0:02:24.4]}
15... cxd4 {[%clk 0:02:35.7]} 16. Bxd4 {[%clk 0:02:23.6]} 16... Nc5 {[%clk
0:02:36.8]} 17. Qe3 {[%clk 0:02:12]} 17... Qc7 {[%clk 0:02:21.6]} 18. e5 {[%clk
0:02:03]} 18... Nd5 {[%clk 0:02:22.7]} 19. Bxd5 {[%clk 0:01:52.9]} 19... Bxd5
{[%clk 0:02:24.6]} 20. Nd2 {[%clk 0:01:44.9]} 20... bxa3 {[%clk 0:02:21.8]} 21.
Qxa3 {[%clk 0:01:43.7]} 21... Rfc8 {[%clk 0:02:22.9]} 22. exd6 {[%clk
0:01:30.7]} 22... exd6 {[%clk 0:02:12.8]} 23. Bxc5 {[%clk 0:01:21.5]} 23... Rab8
{[%clk 0:02:02.4]} 24. c3 {[%clk 0:01:10.7]} 24... dxc5 {[%clk 0:02:00.3]} 25.
Nde4 {[%clk 0:01:05.2]} 25... Qf4+ {[%clk 0:01:51.6]} 26. Kb1 {[%clk 0:01:01.9]}
26... Rb3 {[%clk 0:01:52.8]} 27. Qxa5 {[%clk 0:00:56.6]} 27... Bxe4+ {[%clk
0:01:50.4]} 28. Nxe4 {[%clk 0:00:56.6]} 28... Qb8 {[%clk 0:01:23.9]} 29. Rd2
{[%clk 0:00:49.3]} 29... f5 {[%clk 0:01:24.9]} 30. Nxc5 {[%clk 0:00:37.4]} 30...
Bxc3 {[%clk 0:01:25.8]} 31. Qa6 {[%clk 0:00:17.8]} 31... Rxb2+ {[%clk
0:01:26.8]} 32. Kc1 {[%clk 0:00:19.2]} 32... Rb1+ {[%clk 0:01:28.2]} 33. Kc2
{[%clk 0:00:20.6]} 33... Qb2+ {[%clk 0:01:29.9]} 34. Kd3 {[%clk 0:00:22.1]}
34... Qxd2+ {[%clk 0:01:31.6]} 35. Kc4 {[%clk 0:00:22.9]} 35... Qd4# {[%clk
0:01:33.3]} 0-1

[Event "*** Titled Tuesday 3|2 Blitz"]
[Site "Chess.com"]
[Date "2016.05.03"]
[Round "3"]
[White "Kacparov"]
[Black "oskariot"]
[Result "1/2-1/2"]
[WhiteElo "2566"]
[BlackElo "2421"]
[TimeControl "180+2"]
[EndTime "17:36:15 PDT"]
[Termination "Game drawn by agreement"]

1. e4 {[%clk 0:03:00.8]} 1... c5 {[%clk 0:03:00.9]} 2. Nf3 {[%clk 0:03:01.7]}
2... d6 {[%clk 0:02:59.8]} 3. d4 {[%clk 0:03:02.8]} 3... cxd4 {[%clk 0:03:00.9]}
4. Nxd4 {[%clk 0:03:04.7]} 4... Nf6 {[%clk 0:03:02.5]} 5. f3 {[%clk 0:03:06.2]}
5... Nc6 {[%clk 0:02:59]} 6. c4 {[%clk 0:03:06.5]} 6... g6 {[%clk 0:03:00.1]} 7.
Nc3 {[%clk 0:03:07.3]} 7... Bg7 {[%clk 0:03:01.7]} 8. Be3 {[%clk 0:03:08.5]}
8... O-O {[%clk 0:03:03.4]} 9. Qd2 {[%clk 0:03:10]} 9... Bd7 {[%clk 0:03:05]}
10. Be2 {[%clk 0:03:10.9]} 10... Nxd4 {[%clk 0:03:06.6]} 11. Bxd4 {[%clk
0:03:11.8]} 11... a5 {[%clk 0:03:08.3]} 12. O-O {[%clk 0:03:12.6]} 12... Bc6
{[%clk 0:03:09.9]} 13. Rac1 {[%clk 0:03:13.2]} 13... Nd7 {[%clk 0:03:10.3]} 14.
Be3 {[%clk 0:03:12.1]} 14... Nc5 {[%clk 0:03:10.5]} 15. Rfd1 {[%clk 0:03:13.2]}
15... Qb6 {[%clk 0:03:01]} 16. Bf1 {[%clk 0:03:11.7]} 16... Rfc8 {[%clk
0:02:59.9]} 17. Kh1 {[%clk 0:03:05]} 17... a4 {[%clk 0:02:35.8]} 18. Rc2 {[%clk
0:03:03.4]} 18... Qb4 {[%clk 0:02:16.1]} 19. Nd5 {[%clk 0:02:54.6]} 19... Qxd2
{[%clk 0:02:15.7]} 20. Rdxd2 {[%clk 0:02:49.6]} 20... Bxd5 {[%clk 0:02:07.6]}
21. cxd5 {[%clk 0:02:49.1]} 21... a3 {[%clk 0:01:43]} 22. b4 {[%clk 0:02:17.5]}
22... Na6 {[%clk 0:01:24.9]} 23. Bxa6 {[%clk 0:02:12.2]} 23... bxa6 {[%clk
0:01:22.2]} 24. Rc6 {[%clk 0:02:06.7]} 24... Rcb8 {[%clk 0:00:55]} 25. Bb6
{[%clk 0:02:07.1]} 25... Bc3 {[%clk 0:00:48.4]} 26. Rxc3 {[%clk 0:02:02.8]}
26... Rxb6 {[%clk 0:00:49.4]} 27. Rd4 {[%clk 0:01:55.6]} 27... a5 {[%clk
0:00:41.6]} 28. Rxa3 {[%clk 0:01:50.9]} 28... Rc8 {[%clk 0:00:37.3]} 29. h4
{[%clk 0:01:50.3]} 29... Rxb4 {[%clk 0:00:30.8]} 30. Rxb4 {[%clk 0:01:41.8]}
30... axb4 {[%clk 0:00:32]} 31. Ra7 {[%clk 0:01:41.7]} 31... Kf8 {[%clk
0:00:24.8]} 32. Rb7 {[%clk 0:01:42.7]} 32... Rc2 {[%clk 0:00:25.1]} 33. Rb8+
{[%clk 0:01:43.8]} 33... Kg7 {[%clk 0:00:25.9]} 34. Rxb4 {[%clk 0:01:43.6]}
34... Rxa2 {[%clk 0:00:27.1]} 35. Rb7 {[%clk 0:01:44.9]} 35... Kf6 {[%clk
0:00:28.2]} 36. Kh2 {[%clk 0:01:44.6]} 36... h6 {[%clk 0:00:29.6]} 37. Kg3
{[%clk 0:01:45.2]} 37... g5 {[%clk 0:00:31.1]} 1/2-1/2